Workbook

Sheet Sheet1
A1: Program to calculate earth's magnetic field
A2: http://www.ngdc.noaa.gov/geomag-web/#igrfwmm
A3: Latitude: | E3: Latitude:35.103821°
A4: Longitude: | E4: Longitude:-106.671219°
A8: Latitude: N S | B8: Longitude: E W
A10: Start Date (1900-2015):
A11: Year:
A12: Month (1-12):
A13: Day (1-31):
A17: End Date (same as starting date for a single day) (1900-2015):
A18: Year:
A19: Month (1-12):
A20: Day (1-31):
A24: For multiple years, enter step size in years:
A26: Elevation (0-600 km):
A29: (Results will appear below.)
A32: Results for date: 2012.7896728515625
A33: Declination = 9.018° changing by -0.121 °/year
A34: Inclination = 62.196° changing by -0.023 °/year
A35: X component = 22,940.51 changing by -20.51 nT/year | B35: North
A36: Y component = 3,640.8 changing by -52.92 nT/year | B36: East
A37: Z component = 44,047.34 changing by -96.55 nT/year | B37: Vertical
A38: Horizontal Intensity = 23,227.62 changing by -28.5 nT/year
A39: Total Intensity = 49,796.49 changing by -98.69 nT/year
A42: Reading the results
A44: The magnetic parameters declination, inclination, horizontal component, north component, east component, vertical component, and total field (D, I, H, X, Y, Z, and F) are computed based on the latest International Geomagnetic Reference Field (IGRF) model of the Earth's main magnetic field. Accuracies for the angular components (Declination, D and Inclination, I) are reported in degrees and minutes of arc and are generally within 30 minutes. Accuracies for the force components (Horizontal - H, North - X, East - Y, Vertical - Z, and Total force - F) are generally within 100 to 250 nanotesla. Local disturbances and attempting to use a model beyond its valid date range could cause greater errors. Before using the IGRF please look at the 'Health Warning'. The sign convention used throughout is Declination (D) positive east, Inclination (I) and Vertical intensity (Z) positive down, North component (X) positive north, and East component (Y) positive east. The Horizontal (H) and Total (F) intensities are always positive. For more information on Earth's magnetic field parameters, see our Frequently Asked Questions.
A48: Earth Magnetic Field at IBL
A49: Bx= | B49: 2.294e-05 | C49: T
A50: By= | B50: 3.641e-06 | C50: T
A51: Bz= | B51: 4.4047e-05 | C51: T
A53: Ion
A54: m= | B54: 1 | C54: amu | D54: =+B54*1.661E-27 -> 1.661e-27 | E54: kg
A55: E= | B55: 0.1 | C55: MeV | D55: =+B55*1000000*1.6E-19 -> 1.6e-14 | E55: J
A56: q= | B56: 1 | C56: e | D56: =+B56*1.6E-19 -> 1.6e-19 | E56: C
A58: beamline
A59: angle (toward north)= | B59: 45 | C59: deg | D59: =+B59/180*PI() -> 0.7853981634 | E59: rad
A60: d (length)= | B60: 5.1816 | C60: m
A62: ion velocity | D62: check
A63: V= | B63: =SQRT(2*D55/D54) -> 4389248.536 | C63: m/s | D63: =SQRT(2*B55/931)*300000000 -> 4397050.08
A64: Vx | B64: =+SIN(D59)*B63 -> 3103667.404 | C64: m/s
A65: Vy | B65: =+B63*COS(D59) -> 3103667.404 | C65: m/s
A66: Vz | B66: 0 | C66: m/s
A68: Forces
A69: Fx= | B69: =+B65*B51-B66*B50 -> 136.7072381 | C69: =+B69*$D$56 -> 2.18731581e-17 | D69: N
A70: Fy= | B70: =+B66*B49-B64*B51 -> -136.7072381 | C70: =+B70*$D$56 -> -2.18731581e-17 | D70: N
A71: Fz= | B71: =+B64*B50-B65*B49 -> -59.89767723 | C71: -9.583628357e-18 | D71: N
A73: flight time
A74: t= | B74: =+B60/B63 -> 1.180520984e-06 | C74: s
A76: deflection in system coordinate system
A77: X' | B77: =0.5*C69*$B$74^2/$D$54 -> 0.009176124265 | C77: m
A78: Y' | B78: =0.5*C70*$B$74^2/$D$54 -> -0.009176124265 | C78: m
A79: Z' | B79: -0.004020478629 | C79: m
A81: deflection in target coordinate system (assuming target normal to beam)
A82: X" | B82: =+B77*COS(D59)-B78*SIN(D59) -> 0.01297699939 | C82: m | D82: left
A83: Z" | B83: =+B79 -> -0.004020478629 | C83: m | D83: down
A85: rewritten in a more convenient coordinate system
A86: where x is to right, and z is up
A87: X''' | B87: =-B82*1000 -> -12.97699939 | C87: mm | D87: right
A88: Z''' | B88: =-B83*1000 -> 4.020478629 | C88: mm | D88: up
C91: amu | D91: MeV | F91: deg
A92: Beamline | B92: ion | C92: m | D92: E | E92: q | F92: angle | G92: d(feet) | H92: X'''(mm) | I92: Y'''(mm)
A93: TANDEM uONE | B93: H | C93: 1 | D93: 1 | E93: 1 | F93: 15 | G93: 10 | H93: 1.419961081 | I93: 0.6839540121
B94: He | C94: 4 | D94: 3 | E94: 1 | F94: 15 | G94: 10 | H94: 0.4099074563 | I94: 0.1974405165
B95: C | C95: 12 | D95: 12 | E95: 4 | F95: 15 | G95: 10 | H95: 0.4733203605 | I95: 0.2279846707
B96: Si | C96: 28 | D96: 36 | E96: 5 | F96: 15 | G96: 10 | H96: 0.2236228508 | I96: 0.1077126324
B97: Cu | C97: 65 | D97: 36 | E97: 5 | F97: 15 | G97: 10 | H97: 0.1467704132 | I97: 0.0706950453
A98: QASPR3 | B98: H | C98: 1 | D98: 1 | E98: 1 | F98: 15 | G98: 8 | H98: 0.9087750921 | I98: 0.4377305677
B99: He | C99: 4 | D99: 3 | E99: 1 | F99: 15 | G99: 8 | H99: 0.262340772 | I99: 0.1263619306
B100: C | C100: 12 | D100: 12 | E100: 4 | F100: 15 | G100: 8 | H100: 0.3029250307 | I100: 0.1459101892
B101: Si | C101: 28 | D101: 36 | E101: 5 | F101: 15 | G101: 8 | H101: 0.1431186245 | I101: 0.06893608473
B102: Cu | C102: 65 | D102: 36 | E102: 5 | F102: 15 | G102: 8 | H102: 0.09393306446 | I102: 0.04524482899
A103: IBA | B103: H | C103: 1 | D103: 1 | E103: 1 | F103: -15 | G103: 7 | H103: 0.6957809299 | I103: 0.3649069862
B104: He | C104: 4 | D104: 3 | E104: 1 | F104: -15 | G104: 7 | H104: 0.2008546536 | I104: 0.1053395734
B105: C | C105: 12 | D105: 12 | E105: 4 | F105: -15 | G105: 7 | H105: 0.2319269766 | I105: 0.1216356621
B106: Si | C106: 28 | D106: 36 | E106: 5 | F106: -15 | G106: 7 | H106: 0.1095751969 | I106: 0.05746744864
B107: Cu | C107: 65 | D107: 36 | E107: 5 | F107: -15 | G107: 7 | H107: 0.07191750247 | I107: 0.03771761766
A108: QASPR2 | B108: H | C108: 1 | D108: 1 | E108: 1 | F108: 45 | G108: 12 | H108: 2.044743957 | I108: 0.6335443302
B109: He | C109: 4 | D109: 3 | E109: 1 | F109: 45 | G109: 12 | H109: 0.5902667371 | I109: 0.1828884948
B110: C | C110: 12 | D110: 12 | E110: 4 | F110: 45 | G110: 12 | H110: 0.6815813191 | I110: 0.2111814434
B111: Si | C111: 28 | D111: 36 | E111: 5 | F111: 45 | G111: 12 | H111: 0.3220169051 | I111: 0.0997738537
B112: Cu | C112: 65 | D112: 36 | E112: 5 | F112: 45 | G112: 12 | H112: 0.211349395 | I112: 0.0654845857
A113: I3TEM | B113: H | C113: 1 | D113: 1 | E113: 1 | F113: 90 | G113: 12 | H113: 2.044743957 | I113: -0.1688988057
B114: He | C114: 4 | D114: 3 | E114: 1 | F114: 90 | G114: 12 | H114: 0.5902667371 | I114: -0.04875688546
B115: C | C115: 12 | D115: 12 | E115: 4 | F115: 90 | G115: 12 | H115: 0.6815813191 | I115: -0.0562996019
B116: Si | C116: 28 | D116: 36 | E116: 5 | F116: 90 | G116: 12 | H116: 0.3220169051 | I116: -0.0265990617
B117: Cu | C117: 65 | D117: 36 | E117: 5 | F117: 90 | G117: 12 | H117: 0.211349395 | I117: -0.01745776545
B118: Au | C118: 197 | D118: 5 | E118: 4 | F118: 90 | G118: 12 | H118: 0.2606038392 | I118: -0.02152625371
A119: PELLETRON uBEAM | B119: H | C119: 1 | D119: 2.5 | E119: 1 | F119: 7.5 | G119: 14 | H119: 1.760201993 | I119: 0.8898941776
B120: 3He | C120: 3 | D120: 1 | E120: 1 | F120: 7.5 | G120: 14 | H120: 1.606837229 | I120: 0.8123585247
B121: 4He | C121: 4 | D121: 0.75 | E121: 1 | F121: 7.5 | G121: 14 | H121: 1.606837229 | I121: 0.8123585247
B122: C | C122: 12 | D122: 0.25 | E122: 1 | F122: 7.5 | G122: 14 | H122: 1.606837229 | I122: 0.8123585247
A123: HVEE nanoBEAM | B123: H | C123: 1 | D123: 0.25 | E123: 1 | F123: -15 | G123: 17 | H123: 8.20737505 | I123: 4.304413021
B124: P | C124: 31 | D124: 0.25 | E124: 1 | F124: -15 | G124: 17 | H124: 1.474088075 | I124: 0.7730954007
B125: Sb | C125: 121 | D125: 0.25 | E125: 1 | F125: -15 | G125: 17 | H125: 0.7461250046 | I125: 0.3913102747
B126: H | C126: 1 | D126: 0.02 | E126: 1 | F126: -15 | G126: 17 | H126: 29.01745277 | I126: 15.21839818
B127: P | C127: 31 | D127: 0.02 | E127: 1 | F127: -15 | G127: 17 | H127: 5.211688369 | I127: 2.733305002
B128: Sb | C128: 121 | D128: 0.02 | E128: 1 | F128: -15 | G128: 17 | H128: 2.637950252 | I128: 1.383490744

Sheet Sheet2

Sheet Sheet3
